Workbook

Sheet Calculator
B5: Select a nation for required formats | E5: USA
C7: reqd.time.avg | D7: Conc | E7: Unit | F7: AQI | G7: Remarks
B8: PM2.5 | C8: 24hr | D8: 37.5 | E8: micro-g/m3 | F8: 105.25 | G8: Unhealthy for Sensitive Groups | I8: Version.1: Calculates AQI for selected country methodology and concentrations for one instance
C9: 8hr | E9: micro-g/m3 | F9: NA
C10: 1hr | E10: micro-g/m3 | F10: NA
B11: PM10 | C11: 24hr | D11: 130 | E11: micro-g/m3 | F11: 88 | G11: Moderate
C12: 8hr | E12: micro-g/m3 | F12: NA | J12: Conditional Pollutant | K12: PM2.5-24hr | L12: 105.25 | M12: Unhealthy for Sensitive Groups
C13: 1hr | E13: micro-g/m3 | F13: NA | J13: Average of worst two | L13: 96.625 | M13: Moderate
B14: SO2 | C14: 24hr | D14: 54 | E14: micro-g/m3 | F14: 28.50044919 | G14: Good | J14: Average of all | L14: 49.56499533 | M14: Good
C15: 8hr | E15: micro-g/m3 | F15: NA
C16: 1hr | E16: micro-g/m3 | F16: NA
B17: NO2 | C17: 24hr | D17: 34 | E17: micro-g/m3 | F17: 19.95838584 | G17: Good
C18: 8hr | E18: micro-g/m3 | F18: NA
C19: 1hr | D19: 80 | E19: micro-g/m3 | F19: NA
B20: CO | C20: 24hr | E20: micro-g/m3 | F20: NA
C21: 8hr | D21: 2000 | E21: micro-g/m3 | F21: 19.19222167 | G21: Good
C22: 1hr | D22: 10000 | E22: micro-g/m3 | F22: NA
B23: Ozone | C23: 24hr | E23: micro-g/m3 | F23: NA
C24: 8hr | D24: 80 | E24: micro-g/m3 | F24: 36.48891528 | G24: Good
C25: 1hr | D25: 200 | E25: micro-g/m3 | F25: 0

Sheet aqi_breaks_usa
B1: 1 | C1: USA AQI Break Points Information
B5: Number of bins | D5: Number of polls | G5: Break Points
B6: =MAX(B11:B20) -> 6 | D6: =MAX(G6:X6) -> 18 | G6: 1 | H6: 2 | I6: 3 | J6: 4 | K6: 5 | L6: 6 | M6: 7 | N6: 8 | O6: 9 | P6: 10 | Q6: 11 | R6: 12 | S6: 13 | T6: 14 | U6: 15 | V6: 16 | W6: 17 | X6: 18
G7: PM2.5 | H7: PM2.5 | I7: PM2.5 | J7: PM10 | K7: PM10 | L7: PM10 | M7: SO2 | N7: SO2 | O7: SO2 | P7: NO2 | Q7: NO2 | R7: NO2 | S7: CO | T7: CO | U7: CO | V7: Ozone | W7: Ozone | X7: Ozone
G8: 24hr | H8: 8hr | I8: 1hr | J8: 24hr | K8: 8hr | L8: 1hr | M8: 24hr | N8: 8hr | O8: 1hr | P8: 24hr | Q8: 8hr | R8: 1hr | S8: 24hr | T8: 8hr | U8: 1hr | V8: 24hr | W8: 8hr | X8: 1hr
D9: AQI | G9: ug/m3 | H9: ug/m3 | I9: ug/m3 | J9: ug/m3 | K9: ug/m3 | L9: ug/m3 | M9: ug/m3 | N9: ug/m3 | O9: ug/m3 | P9: ug/m3 | Q9: ug/m3 | R9: ug/m3 | S9: ug/m3 | T9: ug/m3 | U9: ug/m3 | V9: ug/m3 | W9: ug/m3 | X9: ug/m3
D10: Low | E10: High | F10: col.code | G10: 0 | J10: 0 | M10: 0 | P10: 0 | T10: 0 | W10: 0 | X10: 0
B11: 1 | C11: Good | D11: 0 | E11: 50 | F11: 43 | G11: 12 | J11: 54 | M11: =M27*Unit_Conversion!$K$11 -> 94.73534899 | P11: =P27*Unit_Conversion!$K$12 -> 85.17722895 | T11: =T27*Unit_Conversion!$G$13 -> 5210.444194 | W11: =W27*Unit_Conversion!$G$14 -> 109.6223324 | X11: =X27*Unit_Conversion!$G$14 -> 0
B12: 2 | C12: Moderate | D12: 50 | E12: 100 | F12: 27 | G12: 35.4 | J12: 154 | M12: =M28*Unit_Conversion!$K$11 -> 203.0043193 | P12: =P28*Unit_Conversion!$K$12 -> 160.7117527 | T12: =T28*Unit_Conversion!$G$13 -> 11131.40351 | W12: =W28*Unit_Conversion!$G$14 -> 142.1030235 | X12: =X28*Unit_Conversion!$G$14 -> 253.7553991
B13: 3 | C13: Unhealthy for Sensitive Groups | D13: 100 | E13: 150 | F13: 45 | G13: 55.4 | J13: 254 | M13: =M29*Unit_Conversion!$K$11 -> 500.7439875 | P13: =P29*Unit_Conversion!$K$12 -> 578.5623099 | T13: =T29*Unit_Conversion!$G$13 -> 14683.97909 | W13: =W29*Unit_Conversion!$G$14 -> 172.5536714 | X13: =X29*Unit_Conversion!$G$14 -> 332.9270836
B14: 4 | C14: Unhealthy | D14: 150 | E14: 200 | F14: 3 | G14: 150.4 | J14: 354 | M14: =M30*Unit_Conversion!$K$11 -> 822.844174 | P14: =P30*Unit_Conversion!$K$12 -> 1043.019275 | T14: =T30*Unit_Conversion!$G$13 -> 18236.55468 | W14: =W30*Unit_Conversion!$G$14 -> 213.1545352 | X14: =X30*Unit_Conversion!$G$14 -> 414.1288113
B15: 5 | C15: Very Unhealthy | D15: 200 | E15: 300 | F15: 13 | G15: 250.4 | J15: 424 | M15: =M31*Unit_Conversion!$K$11 -> 1634.861451 | P15: =P31*Unit_Conversion!$K$12 -> 2007.289792 | T15: =T31*Unit_Conversion!$G$13 -> 35999.43261 | W15: =W31*Unit_Conversion!$G$14 -> 406.0086385 | X15: =X31*Unit_Conversion!$G$14 -> 820.1374498
B16: 6 | C16: Hazardous | D16: 300 | E16: 500 | F16: 9 | G16: 500.4 | J16: 604 | M16: =M32*Unit_Conversion!$K$11 -> 2717.551154 | P16: =P32*Unit_Conversion!$K$12 -> 3292.983814 | T16: =T32*Unit_Conversion!$G$13 -> 59683.26986 | W16: =W32*Unit_Conversion!$G$14 -> 0 | X16: =X32*Unit_Conversion!$G$14 -> 1226.146088
G21: Break Points
G22: 1 | H22: 2 | I22: 3 | J22: 4 | K22: 5 | L22: 6 | M22: 7 | N22: 8 | O22: 9 | P22: 10 | Q22: 11 | R22: 12 | S22: 13 | T22: 14 | U22: 15 | V22: 16 | W22: 17 | X22: 18
G23: PM2.5 | H23: PM2.5 | I23: PM2.5 | J23: PM10 | K23: PM10 | L23: PM10 | M23: SO2 | N23: SO2 | O23: SO2 | P23: NO2 | Q23: NO2 | R23: NO2 | S23: CO | T23: CO | U23: CO | V23: Ozone | W23: Ozone | X23: Ozone
G24: 24hr | H24: 8hr | I24: 1hr | J24: 24hr | K24: 8hr | L24: 1hr | M24: 24hr | N24: 8hr | O24: 1hr | P24: 24hr | Q24: 8hr | R24: 1hr | S24: 24hr | T24: 8hr | U24: 1hr | V24: 24hr | W24: 8hr | X24: 1hr
J25: ug/m3 | M25: ppb | P25: ppb | T25: ppm | W25: ppm | X25: ppm
M26: 0 | P26: 0 | T26: 0 | W26: 0 | X26: 0
M27: 35 | P27: 53 | T27: 4.4 | W27: 0.054 | X27: 0
M28: 75 | P28: 100 | T28: 9.4 | W28: 0.07 | X28: 0.125
M29: 185 | P29: 360 | T29: 12.4 | W29: 0.085 | X29: 0.164
M30: 304 | P30: 649 | T30: 15.4 | W30: 0.105 | X30: 0.204
M31: 604 | P31: 1249 | T31: 30.4 | W31: 0.2 | X31: 0.404
M32: 1004 | P32: 2049 | T32: 50.4 | W32: 0 | X32: 0.604

Sheet aqi_breaks_eu
B1: 2 | C1: EU AQI Break Points Information
B5: Number of bins | D5: Number of polls | G5: Break Points
B6: =MAX(B11:B20) -> 6 | D6: =MAX(G6:X6) -> 18 | G6: 1 | H6: 2 | I6: 3 | J6: 4 | K6: 5 | L6: 6 | M6: 7 | N6: 8 | O6: 9 | P6: 10 | Q6: 11 | R6: 12 | S6: 13 | T6: 14 | U6: 15 | V6: 16 | W6: 17 | X6: 18
G7: PM2.5 | H7: PM2.5 | I7: PM2.5 | J7: PM10 | K7: PM10 | L7: PM10 | M7: SO2 | N7: SO2 | O7: SO2 | P7: NO2 | Q7: NO2 | R7: NO2 | S7: CO | T7: CO | U7: CO | V7: Ozone | W7: Ozone | X7: Ozone
G8: 24hr | H8: 8hr | I8: 1hr | J8: 24hr | K8: 8hr | L8: 1hr | M8: 24hr | N8: 8hr | O8: 1hr | P8: 24hr | Q8: 8hr | R8: 1hr | S8: 24hr | T8: 8hr | U8: 1hr | V8: 24hr | W8: 8hr | X8: 1hr
D9: AQI | G9: ug/m3 | H9: ug/m3 | I9: ug/m3 | J9: ug/m3 | K9: ug/m3 | L9: ug/m3 | M9: ug/m3 | N9: ug/m3 | O9: ug/m3 | P9: ug/m3 | Q9: ug/m3 | R9: ug/m3 | S9: ug/m3 | T9: ug/m3 | U9: ug/m3 | V9: ug/m3 | W9: ug/m3 | X9: ug/m3
D10: Low | E10: High | F10: col.code | G10: 0 | J10: 0 | O10: 0 | R10: 0 | X10: 0
B11: 1 | C11: Very Good | D11: 0 | E11: 50 | F11: 10 | G11: 10 | J11: 20 | O11: 100 | R11: 40 | X11: 50
B12: 2 | C12: Good | D12: 50 | E12: 100 | F12: 43 | G12: 20 | J12: 40 | O12: 200 | R12: 90 | X12: 100
B13: 3 | C13: Medium | D13: 100 | E13: 200 | F13: 27 | G13: 25 | J13: 50 | O13: 350 | R13: 120 | X13: 130
B14: 4 | C14: Poor | D14: 200 | E14: 300 | F14: 45 | G14: 50 | J14: 100 | O14: 500 | R14: 230 | X14: 240
B15: 5 | C15: Very Poor | D15: 300 | E15: 400 | F15: 46 | G15: 75 | J15: 150 | O15: 750 | R15: 340 | X15: 380
B16: 6 | C16: Extremely Poor | D16: 400 | E16: 500 | F16: 3 | G16: 800 | J16: 1200 | O16: 1250 | R16: 1000 | X16: 800

Sheet aqi_breaks_uk
B1: 3 | C1: UK AQI Break Points Information
B5: Number of bins | D5: Number of polls | G5: Break Points
B6: =MAX(B11:B20) -> 10 | D6: =MAX(G6:X6) -> 18 | G6: 1 | H6: 2 | I6: 3 | J6: 4 | K6: 5 | L6: 6 | M6: 7 | N6: 8 | O6: 9 | P6: 10 | Q6: 11 | R6: 12 | S6: 13 | T6: 14 | U6: 15 | V6: 16 | W6: 17 | X6: 18
G7: PM2.5 | H7: PM2.5 | I7: PM2.5 | J7: PM10 | K7: PM10 | L7: PM10 | M7: SO2 | N7: SO2 | O7: SO2 | P7: NO2 | Q7: NO2 | R7: NO2 | S7: CO | T7: CO | U7: CO | V7: Ozone | W7: Ozone | X7: Ozone
G8: 24hr | H8: 8hr | I8: 1hr | J8: 24hr | K8: 8hr | L8: 1hr | M8: 24hr | N8: 8hr | O8: 1hr | P8: 24hr | Q8: 8hr | R8: 1hr | S8: 24hr | T8: 8hr | U8: 1hr | V8: 24hr | W8: 8hr | X8: 1hr
D9: AQI | G9: ug/m3 | H9: ug/m3 | I9: ug/m3 | J9: ug/m3 | K9: ug/m3 | L9: ug/m3 | M9: ug/m3 | N9: ug/m3 | O9: ug/m3 | P9: ug/m3 | Q9: ug/m3 | R9: ug/m3 | S9: ug/m3 | T9: ug/m3 | U9: ug/m3 | V9: ug/m3 | W9: ug/m3 | X9: ug/m3
D10: Low | E10: High | F10: col.code | G10: 0 | J10: 0 | O10: 0 | R10: 0 | W10: 0
B11: 1 | C11: Low | D11: 0 | E11: 1 | F11: 43 | G11: 11 | J11: 16 | O11: 88 | R11: 67 | W11: 33
B12: 2 | C12: Low | D12: 1 | E12: 2 | F12: 43 | G12: 23 | J12: 33 | O12: 177 | R12: 134 | W12: 66
B13: 3 | C13: Low | D13: 2 | E13: 3 | F13: 43 | G13: 35 | J13: 50 | O13: 266 | R13: 200 | W13: 100
B14: 4 | C14: Moderate | D14: 3 | E14: 4 | F14: 27 | G14: 41 | J14: 58 | O14: 354 | R14: 267 | W14: 120
B15: 5 | C15: Moderate | D15: 4 | E15: 5 | F15: 44 | G15: 47 | J15: 66 | O15: 443 | R15: 334 | W15: 140
B16: 6 | C16: Moderate | D16: 5 | E16: 6 | F16: 45 | G16: 53 | J16: 75 | O16: 532 | R16: 400 | W16: 160
B17: 7 | C17: High | D17: 6 | E17: 7 | F17: 46 | G17: 58 | J17: 83 | O17: 710 | R17: 467 | W17: 187
B18: 8 | C18: High | D18: 7 | E18: 8 | F18: 3 | G18: 64 | J18: 91 | O18: 887 | R18: 534 | W18: 213
B19: 9 | C19: High | D19: 8 | E19: 9 | F19: 53 | G19: 70 | J19: 100 | O19: 1064 | R19: 600 | W19: 240
B20: 10 | C20: Very High | D20: 9 | E20: 10 | F20: 13 | G20: 100 | J20: 150 | O20: 1500 | R20: 1000 | W20: 300

Sheet aqi_breaks_india
B1: 4 | C1: INDIA AQI Break Points Information
B5: Number of bins | D5: Number of polls | G5: Break Points
B6: =MAX(B11:B20) -> 6 | D6: =MAX(G6:X6) -> 18 | G6: 1 | H6: 2 | I6: 3 | J6: 4 | K6: 5 | L6: 6 | M6: 7 | N6: 8 | O6: 9 | P6: 10 | Q6: 11 | R6: 12 | S6: 13 | T6: 14 | U6: 15 | V6: 16 | W6: 17 | X6: 18
G7: PM2.5 | H7: PM2.5 | I7: PM2.5 | J7: PM10 | K7: PM10 | L7: PM10 | M7: SO2 | N7: SO2 | O7: SO2 | P7: NO2 | Q7: NO2 | R7: NO2 | S7: CO | T7: CO | U7: CO | V7: Ozone | W7: Ozone | X7: Ozone
G8: 24hr | H8: 8hr | I8: 1hr | J8: 24hr | K8: 8hr | L8: 1hr | M8: 24hr | N8: 8hr | O8: 1hr | P8: 24hr | Q8: 8hr | R8: 1hr | S8: 24hr | T8: 8hr | U8: 1hr | V8: 24hr | W8: 8hr | X8: 1hr
D9: AQI | G9: ug/m3 | H9: ug/m3 | I9: ug/m3 | J9: ug/m3 | K9: ug/m3 | L9: ug/m3 | M9: ug/m3 | N9: ug/m3 | O9: ug/m3 | P9: ug/m3 | Q9: ug/m3 | R9: ug/m3 | S9: ug/m3 | T9: ug/m3 | U9: ug/m3 | V9: ug/m3 | W9: ug/m3 | X9: ug/m3
D10: Low | E10: High | F10: col.code | G10: 0 | J10: 0 | M10: 0 | P10: 0 | T10: 0 | W10: 0
B11: 1 | C11: Good | D11: 0 | E11: 50 | F11: 10 | G11: 30 | J11: 50 | M11: 40 | P11: 40 | T11: 1000 | W11: 50
B12: 2 | C12: Satisfactory | D12: 50 | E12: 100 | F12: 43 | G12: 60 | J12: 100 | M12: 80 | P12: 80 | T12: 2000 | W12: 100
B13: 3 | C13: Moderate | D13: 100 | E13: 200 | F13: 6 | G13: 90 | J13: 250 | M13: 380 | P13: 180 | T13: 10000 | W13: 168
B14: 4 | C14: Poor | D14: 200 | E14: 300 | F14: 45 | G14: 120 | J14: 350 | M14: 800 | P14: 280 | T14: 17000 | W14: 208
B15: 5 | C15: Very Poor | D15: 300 | E15: 400 | F15: 3 | G15: 250 | J15: 430 | M15: 1600 | P15: 400 | T15: 34000 | W15: 748
B16: 6 | C16: Severe | D16: 400 | E16: 500 | F16: 9 | G16: 500 | J16: 750 | M16: 2500 | P16: 800 | T16: 50000 | W16: 1000

Sheet aqi_breaks_china
B1: 5 | C1: CHINA AQI Break Points Information
B5: Number of bins | D5: Number of polls | G5: Break Points
B6: =MAX(B11:B19) -> 6 | D6: =MAX(G6:X6) -> 18 | G6: 1 | H6: 2 | I6: 3 | J6: 4 | K6: 5 | L6: 6 | M6: 7 | N6: 8 | O6: 9 | P6: 10 | Q6: 11 | R6: 12 | S6: 13 | T6: 14 | U6: 15 | V6: 16 | W6: 17 | X6: 18
G7: PM2.5 | H7: PM2.5 | I7: PM2.5 | J7: PM10 | K7: PM10 | L7: PM10 | M7: SO2 | N7: SO2 | O7: SO2 | P7: NO2 | Q7: NO2 | R7: NO2 | S7: CO | T7: CO | U7: CO | V7: Ozone | W7: Ozone | X7: Ozone
G8: 24hr | H8: 8hr | I8: 1hr | J8: 24hr | K8: 8hr | L8: 1hr | M8: 24hr | N8: 8hr | O8: 1hr | P8: 24hr | Q8: 8hr | R8: 1hr | S8: 24hr | T8: 8hr | U8: 1hr | V8: 24hr | W8: 8hr | X8: 1hr
D9: AQI | G9: ug/m3 | H9: ug/m3 | I9: ug/m3 | J9: ug/m3 | K9: ug/m3 | L9: ug/m3 | M9: ug/m3 | N9: ug/m3 | O9: ug/m3 | P9: ug/m3 | Q9: ug/m3 | R9: ug/m3 | S9: ug/m3 | T9: ug/m3 | U9: ug/m3 | V9: ug/m3 | W9: ug/m3 | X9: ug/m3
D10: Low | E10: High | F10: col.code | G10: 0 | J10: 0 | M10: 0 | P10: 0 | S10: 0 | W10: 0 | X10: 0
B11: 1 | C11: Optimal | D11: 0 | E11: 50 | F11: 4 | G11: 35 | J11: 50 | M11: 50 | P11: 40 | S11: 2000 | W11: 100 | X11: 0
B12: 2 | C12: Good | D12: 50 | E12: 100 | F12: 6 | G12: 75 | J12: 150 | M12: 150 | P12: 80 | S12: 4000 | W12: 160 | X12: 0
B13: 3 | C13: Light Pollution | D13: 100 | E13: 200 | F13: 22 | G13: 115 | J13: 350 | M13: 800 | P13: 280 | S13: 24000 | W13: 265 | X13: 0
B14: 4 | C14: Moderate Pollution | D14: 200 | E14: 300 | F14: 3 | G14: 150 | J14: 420 | M14: 1600 | P14: 565 | S14: 36000 | W14: 800 | X14: 800
B15: 5 | C15: High Pollution | D15: 300 | E15: 400 | F15: 21 | G15: 250 | J15: 500 | M15: 2100 | P15: 750 | S15: 48000 | W15: 0 | X15: 1000
B16: 6 | C16: Severe Pollution | D16: 400 | E16: 500 | F16: 30 | G16: 500 | J16: 600 | M16: 2620 | P16: 940 | S16: 60000 | W16: 0 | X16: 1200

Sheet aqi_breaks_skorea
B1: 6 | C1: S.KOREA AQI Break Points Information
B5: Number of bins | D5: Number of polls | G5: Break Points
B6: =MAX(B11:B20) -> 6 | D6: =MAX(G6:X6) -> 18 | G6: 1 | H6: 2 | I6: 3 | J6: 4 | K6: 5 | L6: 6 | M6: 7 | N6: 8 | O6: 9 | P6: 10 | Q6: 11 | R6: 12 | S6: 13 | T6: 14 | U6: 15 | V6: 16 | W6: 17 | X6: 18
G7: PM2.5 | H7: PM2.5 | I7: PM2.5 | J7: PM10 | K7: PM10 | L7: PM10 | M7: SO2 | N7: SO2 | O7: SO2 | P7: NO2 | Q7: NO2 | R7: NO2 | S7: CO | T7: CO | U7: CO | V7: Ozone | W7: Ozone | X7: Ozone
G8: 24hr | H8: 8hr | I8: 1hr | J8: 24hr | K8: 8hr | L8: 1hr | M8: 24hr | N8: 8hr | O8: 1hr | P8: 24hr | Q8: 8hr | R8: 1hr | S8: 24hr | T8: 8hr | U8: 1hr | V8: 24hr | W8: 8hr | X8: 1hr
D9: AQI | G9: ug/m3 | H9: ug/m3 | I9: ug/m3 | J9: ug/m3 | K9: ug/m3 | L9: ug/m3 | M9: ug/m3 | N9: ug/m3 | O9: ug/m3 | P9: ug/m3 | Q9: ug/m3 | R9: ug/m3 | S9: ug/m3 | T9: ug/m3 | U9: ug/m3 | V9: ug/m3 | W9: ug/m3 | X9: ug/m3
D10: Low | E10: High | F10: col.code | J10: 0 | M10: 0 | P10: 0 | T10: 0 | W10: 0
B11: 1 | C11: Good | D11: 0 | E11: 50 | F11: 43 | J11: 30 | M11: =M27*Unit_Conversion!$G$11 -> 54.13448513 | P11: =P27*Unit_Conversion!$G$12 -> 48.21352582 | T11: =T27*Unit_Conversion!$G$13 -> 2368.383725 | W11: =W27*Unit_Conversion!$G$14 -> 81.2017277
B12: 2 | C12: Moderate | D12: 50 | E12: 100 | F12: 27 | J12: 80 | M12: =M28*Unit_Conversion!$G$11 -> 135.3362128 | P12: =P28*Unit_Conversion!$G$12 -> 96.42705165 | T12: =T28*Unit_Conversion!$G$13 -> 10657.72676 | W12: =W28*Unit_Conversion!$G$14 -> 162.4034554
B13: 3 | C13: Unhealthy for Sensitive Groups | D13: 100 | E13: 150 | F13: 45 | J13: 120 | M13: =M29*Unit_Conversion!$G$11 -> 270.6724257 | P13: =P29*Unit_Conversion!$G$12 -> 241.0676291 | T13: =T29*Unit_Conversion!$G$13 -> 14210.30235 | W13: =W29*Unit_Conversion!$G$14 -> 243.6051831
B14: 4 | C14: Unhealthy | D14: 150 | E14: 250 | F14: 3 | J14: 200 | M14: =M30*Unit_Conversion!$G$11 -> 406.0086385 | P14: =P30*Unit_Conversion!$G$12 -> 321.4235055 | T14: =T30*Unit_Conversion!$G$13 -> 17762.87793 | W14: =W30*Unit_Conversion!$G$14 -> 609.0129578
B15: 5 | C15: Very Unhealthy | D15: 250 | E15: 350 | F15: 13 | J15: 300 | M15: =M31*Unit_Conversion!$G$11 -> 1082.689703 | P15: =P31*Unit_Conversion!$G$12 -> 964.2705165 | T15: =T31*Unit_Conversion!$G$13 -> 35525.75587 | W15: =W31*Unit_Conversion!$G$14 -> 1015.021596
B16: 6 | C16: Hazardous | D16: 350 | E16: 500 | F16: 9 | J16: 600 | M16: =M32*Unit_Conversion!$G$11 -> 2706.724257 | P16: =P32*Unit_Conversion!$G$12 -> 3214.235055 | T16: =T32*Unit_Conversion!$G$13 -> 59209.59312 | W16: =W32*Unit_Conversion!$G$14 -> 1218.025916
G22: Break Points
G23: 1 | H23: 2 | I23: 3 | J23: 4 | K23: 5 | L23: 6 | M23: 7 | N23: 8 | O23: 9 | P23: 10 | Q23: 11 | R23: 12 | S23: 13 | T23: 14 | U23: 15 | V23: 16 | W23: 17 | X23: 18
G24: PM2.5 | H24: PM2.5 | I24: PM2.5 | J24: PM10 | K24: PM10 | L24: PM10 | M24: SO2 | N24: SO2 | O24: SO2 | P24: NO2 | Q24: NO2 | R24: NO2 | S24: CO | T24: CO | U24: CO | V24: Ozone | W24: Ozone | X24: Ozone
G25: 24hr | H25: 8hr | I25: 1hr | J25: 24hr | K25: 8hr | L25: 1hr | M25: 24hr | N25: 8hr | O25: 1hr | P25: 24hr | Q25: 8hr | R25: 1hr | S25: 24hr | T25: 8hr | U25: 1hr | V25: 24hr | W25: 8hr | X25: 1hr
M26: ppm | P26: ppm | T26: ppm | W26: ppm
M27: 0.02 | P27: 0.03 | T27: 2 | W27: 0.04
M28: 0.05 | P28: 0.06 | T28: 9 | W28: 0.08
M29: 0.1 | P29: 0.15 | T29: 12 | W29: 0.12
M30: 0.15 | P30: 0.2 | T30: 15 | W30: 0.3
M31: 0.4 | P31: 0.6 | T31: 30 | W31: 0.5
M32: 1 | P32: 2 | T32: 50 | W32: 0.6

Sheet aqi_breaks_singapore
B1: 7 | C1: SINGAPORE AQI Break Points Information
B5: Number of bins | D5: Number of polls | G5: Break Points
B6: =MAX(B11:B20) -> 6 | D6: =MAX(G6:X6) -> 18 | G6: 1 | H6: 2 | I6: 3 | J6: 4 | K6: 5 | L6: 6 | M6: 7 | N6: 8 | O6: 9 | P6: 10 | Q6: 11 | R6: 12 | S6: 13 | T6: 14 | U6: 15 | V6: 16 | W6: 17 | X6: 18
G7: PM2.5 | H7: PM2.5 | I7: PM2.5 | J7: PM10 | K7: PM10 | L7: PM10 | M7: SO2 | N7: SO2 | O7: SO2 | P7: NO2 | Q7: NO2 | R7: NO2 | S7: CO | T7: CO | U7: CO | V7: Ozone | W7: Ozone | X7: Ozone
G8: 24hr | H8: 8hr | I8: 1hr | J8: 24hr | K8: 8hr | L8: 1hr | M8: 24hr | N8: 8hr | O8: 1hr | P8: 24hr | Q8: 8hr | R8: 1hr | S8: 24hr | T8: 8hr | U8: 1hr | V8: 24hr | W8: 8hr | X8: 1hr
D9: AQI | G9: ug/m3 | H9: ug/m3 | I9: ug/m3 | J9: ug/m3 | K9: ug/m3 | L9: ug/m3 | M9: ug/m3 | N9: ug/m3 | O9: ug/m3 | P9: ug/m3 | Q9: ug/m3 | R9: ug/m3 | S9: ug/m3 | T9: ug/m3 | U9: ug/m3 | V9: ug/m3 | W9: ug/m3 | X9: ug/m3
D10: Low | E10: High | F10: col.code | G10: 0 | J10: 0 | M10: 0 | R10: 0 | T10: 0 | W10: 0 | X10: 0
B11: 1 | C11: Good | D11: 0 | E11: 50 | F11: 43 | G11: 12 | J11: 50 | M11: 80 | R11: 0 | T11: 5000 | W11: 118 | X11: 0
B12: 2 | C12: Moderate | D12: 50 | E12: 100 | F12: 27 | G12: 55 | J12: 150 | M12: 365 | R12: 0 | T12: 10000 | W12: 157 | X12: 0
B13: 3 | C13: Unhealthy | D13: 100 | E13: 200 | F13: 45 | G13: 150 | J13: 350 | M13: 800 | R13: 1130 | T13: 17000 | W13: 235 | X13: 0
B14: 4 | C14: Very Unhealthy | D14: 200 | E14: 300 | F14: 3 | G14: 250 | J14: 420 | M14: 1600 | R14: 2260 | T14: 34000 | W14: 785 | X14: 785
B15: 5 | C15: Hazardous | D15: 300 | E15: 400 | F15: 13 | G15: 350 | J15: 500 | M15: 2100 | R15: 3000 | T15: 46000 | W15: 0 | X15: 980
B16: 6 | C16: Hazardous | D16: 400 | E16: 500 | F16: 9 | G16: 500 | J16: 600 | M16: 2620 | R16: 3750 | T16: 57500 | W16: 0 | X16: 1180
G22: Break Points
G23: 1 | H23: 2 | I23: 3 | J23: 4 | K23: 5 | L23: 6 | M23: 7 | N23: 8 | O23: 9 | P23: 10 | Q23: 11 | R23: 12 | S23: 13 | T23: 14 | U23: 15 | V23: 16 | W23: 17 | X23: 18
G24: PM2.5 | H24: PM2.5 | I24: PM2.5 | J24: PM10 | K24: PM10 | L24: PM10 | M24: SO2 | N24: SO2 | O24: SO2 | P24: NO2 | Q24: NO2 | R24: NO2 | S24: CO | T24: CO | U24: CO | V24: Ozone | W24: Ozone | X24: Ozone
G25: 24hr | H25: 8hr | I25: 1hr | J25: 24hr | K25: 8hr | L25: 1hr | M25: 24hr | N25: 8hr | O25: 1hr | P25: 24hr | Q25: 8hr | R25: 1hr | S25: 24hr | T25: 8hr | U25: 1hr | V25: 24hr | W25: 8hr | X25: 1hr
M26: ppm | P26: ppm | T26: ppm | W26: ppm
M27: 0.02 | P27: 0.03 | T27: 2 | W27: 0.04
M28: 0.05 | P28: 0.06 | T28: 9 | W28: 0.08
M29: 0.1 | P29: 0.15 | T29: 12 | W29: 0.12
M30: 0.15 | P30: 0.2 | T30: 15 | W30: 0.3
M31: 0.4 | P31: 0.6 | T31: 30 | W31: 0.5
M32: 1 | P32: 2 | T32: 50 | W32: 0.6

Sheet Equations

Sheet Unit_Conversion
B3: Conversion at temperature T [°C] and pressure p [atm]
B4: temp | C4: 15 | E4: gas constant = | I4: =22.414/273.16 -> 0.08205447357 | R4: Units
B5: press | C5: 1 | E5: volume 1 mole = | I5: =I4*(C4+273.16)/C5 -> 23.6448171 | R5: micro-g/m3
R6: mg/m3
E7: from | G7: to | I7: from | K7: to | R7: ppm
C8: MW | E8: ppm | G8: ug/m3 | I8: ppb | K8: ug/m3 | R8: ppb
B9: PM2.5 | C9: 0 | E9: 1 | F9: ð | G9: 0 | I9: 1 | J9: ð | K9: 0 | L9: <-- not supported
B10: PM10 | C10: 0 | E10: 1 | F10: ð | G10: 0 | I10: 1 | J10: ð | K10: 0 | L10: <-- not supported
B11: SO2 | C11: 64 | E11: 1 | F11: ð | G11: =E11*C11/$I$5*1000 -> 2706.724257 | I11: 1 | J11: ð | K11: =I11*C11/$I$5 -> 2.706724257
B12: NO2 | C12: 38 | E12: 1 | F12: ð | G12: =E12*C12/$I$5*1000 -> 1607.117527 | I12: 1 | J12: ð | K12: =I12*C12/$I$5 -> 1.607117527
B13: CO | C13: 28 | E13: 1 | F13: ð | G13: 1184.191862 | I13: 1 | J13: ð | K13: 1.184191862
B14: Ozone | C14: 48 | E14: 1 | F14: ð | G14: 2030.043193 | I14: 1 | J14: ð | K14: 2.030043193

Sheet break_point_tally
D3: 1 | E3: 2 | F3: 3 | G3: 4 | H3: 5 | I3: 6 | J3: 7 | K3: 8 | L3: 9 | M3: 10 | N3: 11 | O3: 12 | P3: 13 | Q3: 14 | R3: 15 | S3: 16 | T3: 17 | U3: 18
D4: PM2.5 | G4: PM10 | J4: SO2 | M4: NO2 | P4: CO | S4: Ozone | V4: NH3
D5: 24hr | E5: 8hr | F5: 1hr | G5: 24hr | H5: 8hr | I5: 1hr | J5: 24hr | K5: 8hr | L5: 1hr | M5: 24hr | N5: 8hr | O5: 1hr | P5: 24hr | Q5: 8hr | R5: 1hr | S5: 24hr | T5: 8hr | U5: 1hr | V5: 24hr | W5: 8hr | X5: 1hr
B6: 1 | C6: USA | D6: x | G6: x | J6: x | M6: x | Q6: x | T6: x | U6: x
B7: 2 | C7: EU | D7: x | G7: x | L7: x | O7: x | U7: x
B8: 3 | C8: UK | D8: x | G8: x | L8: x | O8: x | T8: x
B9: 4 | C9: India | D9: x | G9: x | J9: x | M9: x | Q9: x | T9: x
B10: 5 | C10: China | D10: x | G10: x | J10: x | M10: x | P10: x | T10: x | U10: x
B11: 6 | C11: S.Korea | G11: x | J11: x | M11: x | Q11: x | T11: x
B12: 7 | C12: Singapore | D12: x | G12: x | J12: x | O12: x | Q12: x | T12: x | U12: x
B13: 8
B14: 9
B15: 10

Sheet Concentrations
B1: Converting all the pollutant concentrations to micro-g/m3
B5: NOTHING TO CHANGE HERE
D6: input | E6: input | I6: input | J6: output
C7: reqd.time.avg | D7: conc | E7: Unit | G7: pollname | H7: MW | I7: unit.code | J7: conc - ug/m3 | K7: <== used for AQI calculations | N7: pollname
B8: PM2.5 | C8: 24hr | D8: =Calculator!D8 -> 37.5 | E8: =Calculator!E8 -> micro-g/m3 | G8: PM2.5 | H8: =IF(G8=0,0,INDEX(Unit_Conversion!$C$9:$C$14,MATCH(Concentrations!G8,Unit_Conversion!$B$9:$B$14,0))) -> 0 | I8: =MATCH(E8,Unit_Conversion!$R$5:$R$8,0) -> 1 | J8: 37.5 | M8: 1 | N8: =G8 & "-" & C8 -> PM2.5-24hr
C9: 8hr | D9: =Calculator!D9 -> 0 | E9: =Calculator!E9 -> micro-g/m3 | G9: PM2.5 | H9: =IF(G9=0,0,INDEX(Unit_Conversion!$C$9:$C$14,MATCH(Concentrations!G9,Unit_Conversion!$B$9:$B$14,0))) -> 0 | I9: =MATCH(E9,Unit_Conversion!$R$5:$R$8,0) -> 1 | J9: 0 | M9: 2 | N9: =G9 & "-" & C9 -> PM2.5-8hr
C10: 1hr | D10: =Calculator!D10 -> 0 | E10: =Calculator!E10 -> micro-g/m3 | G10: PM2.5 | H10: =IF(G10=0,0,INDEX(Unit_Conversion!$C$9:$C$14,MATCH(Concentrations!G10,Unit_Conversion!$B$9:$B$14,0))) -> 0 | I10: =MATCH(E10,Unit_Conversion!$R$5:$R$8,0) -> 1 | J10: 0 | M10: 3 | N10: PM2.5-1hr
B11: PM10 | C11: 24hr | D11: =Calculator!D11 -> 130 | E11: =Calculator!E11 -> micro-g/m3 | G11: PM10 | H11: =IF(G11=0,0,INDEX(Unit_Conversion!$C$9:$C$14,MATCH(Concentrations!G11,Unit_Conversion!$B$9:$B$14,0))) -> 0 | I11: =MATCH(E11,Unit_Conversion!$R$5:$R$8,0) -> 1 | J11: 130 | M11: 4 | N11: PM10-24hr
C12: 8hr | D12: =Calculator!D12 -> 0 | E12: =Calculator!E12 -> micro-g/m3 | G12: PM10 | H12: =IF(G12=0,0,INDEX(Unit_Conversion!$C$9:$C$14,MATCH(Concentrations!G12,Unit_Conversion!$B$9:$B$14,0))) -> 0 | I12: =MATCH(E12,Unit_Conversion!$R$5:$R$8,0) -> 1 | J12: 0 | M12: 5 | N12: PM10-8hr
C13: 1hr | D13: =Calculator!D13 -> 0 | E13: =Calculator!E13 -> micro-g/m3 | G13: PM10 | H13: =IF(G13=0,0,INDEX(Unit_Conversion!$C$9:$C$14,MATCH(Concentrations!G13,Unit_Conversion!$B$9:$B$14,0))) -> 0 | I13: =MATCH(E13,Unit_Conversion!$R$5:$R$8,0) -> 1 | J13: 0 | M13: 6 | N13: PM10-1hr
B14: SO2 | C14: 24hr | D14: =Calculator!D14 -> 54 | E14: =Calculator!E14 -> micro-g/m3 | G14: SO2 | H14: =IF(G14=0,0,INDEX(Unit_Conversion!$C$9:$C$14,MATCH(Concentrations!G14,Unit_Conversion!$B$9:$B$14,0))) -> 64 | I14: =MATCH(E14,Unit_Conversion!$R$5:$R$8,0) -> 1 | J14: 54 | M14: 7 | N14: SO2-24hr
C15: 8hr | D15: =Calculator!D15 -> 0 | E15: =Calculator!E15 -> micro-g/m3 | G15: SO2 | H15: =IF(G15=0,0,INDEX(Unit_Conversion!$C$9:$C$14,MATCH(Concentrations!G15,Unit_Conversion!$B$9:$B$14,0))) -> 64 | I15: =MATCH(E15,Unit_Conversion!$R$5:$R$8,0) -> 1 | J15: 0 | M15: 8 | N15: SO2-8hr
C16: 1hr | D16: =Calculator!D16 -> 0 | E16: =Calculator!E16 -> micro-g/m3 | G16: SO2 | H16: =IF(G16=0,0,INDEX(Unit_Conversion!$C$9:$C$14,MATCH(Concentrations!G16,Unit_Conversion!$B$9:$B$14,0))) -> 64 | I16: =MATCH(E16,Unit_Conversion!$R$5:$R$8,0) -> 1 | J16: 0 | M16: 9 | N16: SO2-1hr
B17: NO2 | C17: 24hr | D17: =Calculator!D17 -> 34 | E17: =Calculator!E17 -> micro-g/m3 | G17: NO2 | H17: =IF(G17=0,0,INDEX(Unit_Conversion!$C$9:$C$14,MATCH(Concentrations!G17,Unit_Conversion!$B$9:$B$14,0))) -> 38 | I17: =MATCH(E17,Unit_Conversion!$R$5:$R$8,0) -> 1 | J17: 34 | M17: 10 | N17: NO2-24hr
C18: 8hr | D18: =Calculator!D18 -> 0 | E18: =Calculator!E18 -> micro-g/m3 | G18: NO2 | H18: =IF(G18=0,0,INDEX(Unit_Conversion!$C$9:$C$14,MATCH(Concentrations!G18,Unit_Conversion!$B$9:$B$14,0))) -> 38 | I18: =MATCH(E18,Unit_Conversion!$R$5:$R$8,0) -> 1 | J18: 0 | M18: 11 | N18: NO2-8hr
C19: 1hr | D19: =Calculator!D19 -> 80 | E19: =Calculator!E19 -> micro-g/m3 | G19: NO2 | H19: =IF(G19=0,0,INDEX(Unit_Conversion!$C$9:$C$14,MATCH(Concentrations!G19,Unit_Conversion!$B$9:$B$14,0))) -> 38 | I19: =MATCH(E19,Unit_Conversion!$R$5:$R$8,0) -> 1 | J19: 80 | M19: 12 | N19: NO2-1hr
B20: CO | C20: 24hr | D20: =Calculator!D20 -> 0 | E20: =Calculator!E20 -> micro-g/m3 | G20: CO | H20: =IF(G20=0,0,INDEX(Unit_Conversion!$C$9:$C$14,MATCH(Concentrations!G20,Unit_Conversion!$B$9:$B$14,0))) -> 28 | I20: =MATCH(E20,Unit_Conversion!$R$5:$R$8,0) -> 1 | J20: 0 | M20: 13 | N20: CO-24hr
C21: 8hr | D21: =Calculator!D21 -> 2000 | E21: =Calculator!E21 -> micro-g/m3 | G21: CO | H21: =IF(G21=0,0,INDEX(Unit_Conversion!$C$9:$C$14,MATCH(Concentrations!G21,Unit_Conversion!$B$9:$B$14,0))) -> 28 | I21: =MATCH(E21,Unit_Conversion!$R$5:$R$8,0) -> 1 | J21: 2000 | M21: 14 | N21: CO-8hr
C22: 1hr | D22: =Calculator!D22 -> 10000 | E22: =Calculator!E22 -> micro-g/m3 | G22: CO | H22: =IF(G22=0,0,INDEX(Unit_Conversion!$C$9:$C$14,MATCH(Concentrations!G22,Unit_Conversion!$B$9:$B$14,0))) -> 28 | I22: =MATCH(E22,Unit_Conversion!$R$5:$R$8,0) -> 1 | J22: 10000 | M22: 15 | N22: CO-1hr
B23: Ozone | C23: 24hr | D23: =Calculator!D23 -> 0 | E23: =Calculator!E23 -> micro-g/m3 | G23: Ozone | H23: =IF(G23=0,0,INDEX(Unit_Conversion!$C$9:$C$14,MATCH(Concentrations!G23,Unit_Conversion!$B$9:$B$14,0))) -> 48 | I23: =MATCH(E23,Unit_Conversion!$R$5:$R$8,0) -> 1 | J23: 0 | M23: 16 | N23: Ozone-24hr
C24: 8hr | D24: =Calculator!D24 -> 80 | E24: =Calculator!E24 -> micro-g/m3 | G24: Ozone | H24: =IF(G24=0,0,INDEX(Unit_Conversion!$C$9:$C$14,MATCH(Concentrations!G24,Unit_Conversion!$B$9:$B$14,0))) -> 48 | I24: =MATCH(E24,Unit_Conversion!$R$5:$R$8,0) -> 1 | J24: 80 | M24: 17 | N24: Ozone-8hr
C25: 1hr | D25: =Calculator!D25 -> 200 | E25: =Calculator!E25 -> micro-g/m3 | G25: Ozone | H25: =IF(G25=0,0,INDEX(Unit_Conversion!$C$9:$C$14,MATCH(Concentrations!G25,Unit_Conversion!$B$9:$B$14,0))) -> 48 | I25: =MATCH(E25,Unit_Conversion!$R$5:$R$8,0) -> 1 | J25: 200 | M25: 18 | N25: Ozone-1hr

Sheet Country
B1: Countries with AQI methodologies, included in this workbook
B5: NOTHING TO CHANGE HERE
C7: =MATCH(Calculator!$E$5,D9:D16,0) -> 1 | D7: <--Selected
D8: Country's
C9: 1 | D9: USA
C10: 2 | D10: EU
C11: 3 | D11: UK
C12: 4 | D12: India
C13: 5 | D13: China
C14: 6 | D14: S.Korea
C15: 7 | D15: Singapore
C16: 8 | D16: AAD
